[Event "12th National Amateur Chess-ch 2025"]
[Site "Bihar"]
[Date "2025.03.29"]
[Round "9.17"]
[White "Disha U A"]
[Black "Aayusree Sarkar"]
[Result "1/2-1/2"]
[Annotator "NA RC"]
[ECO "C55"]
[WhiteElo "1643"]
[BlackElo "1677"]
[PlyCount "45"]
[EventDate "2025.03.25"]
[EventCountry "IND"]
[SourceTitle "playchess.com"]
[Source "ChessBase"]
[SourceQuality "1"]
[TimeControl "5400+30"]

1. e4 {[%emt 0:00:49]} e5 {[%emt 0:00:12]} 2. Nf3 {[%emt 0:00:04]} Nc6 {[%emt 0:00:06]} 3. Bc4 {[%emt 0:00:07]} Nf6 {[%emt 0:00:09]} 4. d3 {[%emt 0:00:15]} Be7 {[%emt 0:00:14]} 5. O-O {[%emt 0:00:19]} O-O {[%emt 0:00:28]} 6. Re1 {[%emt 0:00:16]} d6 {[%emt 0:01:29]} 7. Nbd2 {[%emt 0:00:25]} Na5 {[%emt 0:06:11]} 8. c3 {[%emt 0:00:26]} Nxc4 {[%emt 0:00:30]} 9. Nxc4 {[%emt 0:00:03]} Be6 {[%emt 0:01:24]} 10. h3 {[%emt 0:01:11]} Bxc4 {[%emt 0:00:59]} 11. dxc4 {[%emt 0:00:03]} Nd7 {[%emt 0:00:24]} 12. Qc2 {[%emt 0:00:39]} Qe8 {[%emt 0:01:20]} 13. Be3 {[%emt 0:03:09]} b6 {[%emt 0:01:58]} 14. Rad1 {[%emt 0:00:41]} Nf6 {[%emt 0:02:22]} 15. Nh4 {[%emt 0:00:52]} Ng4 {[%emt 0:09:32]} 16. Nf5 {[%emt 0:01:10]} Nxe3 {[%emt 0:00:12]} 17. Rxe3 {[%emt 0:00:12]} g6 {[%emt 0:00:27]} 18. Ng3 {[%emt 0:04:27]} Kh8 {[%emt 0:00:27]} 19. Ne2 {[%emt 0:00:05]} Kg8 {[%emt 0:00:04]} 20. Ng3 {[%emt 0:00:04]} Kh8 {[%emt 0:00:08]} 21. Ne2 {[%emt 0:00:03]} Kg8 {[%emt 0:00:07]} 22. Ng3 {[%emt 0:00:03]} Kh8 {[%emt 0:00:08]} 23. Ne2 {[%emt 0:00:37]} 1/2-1/2

[Event "12th National Amateur Chess-ch 2025"]
[Site "Bihar"]
[Date "2025.03.29"]
[Round "9.18"]
[White "Kashvy Sabharwal"]
[Black "Gawande Devanshi"]
[Result "1/2-1/2"]
[Annotator "NA RC"]
[ECO "A48"]
[WhiteElo "1640"]
[BlackElo "1527"]
[PlyCount "60"]
[EventDate "2025.03.25"]
[EventCountry "IND"]
[SourceTitle "playchess.com"]
[Source "ChessBase"]
[SourceQuality "1"]
[TimeControl "5400+30"]

1. d4 {[%emt 0:02:31]} Nf6 {[%emt 0:00:27]} 2. Bf4 {[%emt 0:00:40]} d6 {[%emt 0:00:23]} 3. Nf3 {[%emt 0:00:08]} g6 {[%emt 0:00:32]} 4. c3 {[%emt 0:00:04]} Bg7 {[%emt 0:00:06]} 5. Nbd2 {[%emt 0:00:04]} Nbd7 {[%emt 0:00:12]} 6. e4 {[%emt 0:00:06]} c5 {[%emt 0:02:56]} 7. Be2 {[%emt 0:00:48]} O-O {[%emt 0:01:10]} 8. O-O {[%emt 0:00:15]} Nh5 {[%emt 0:07:00]} 9. Be3 {[%emt 0:01:56]} a6 {[%emt 0:00:30]} 10. a4 {[%emt 0:00:30]} Qc7 {[%emt 0:00:30]} 11. h3 {[%emt 0:00:30]} e5 {[%emt 0:00:30]} 12. d5 {[%emt 0:00:30]} Nf4 {[%emt 0:00:30]} 13. Re1 {[%emt 0:00:30]} Nxe2+ {[%emt 0:00:30]} 14. Qxe2 {[%emt 0:00:30]} Nf6 {[%emt 0:00:30]} 15. a5 {[%emt 0:00:30]} Nh5 {[%emt 0:00:30]} 16. Nc4 {[%emt 0:00:30]} Qe7 {[%emt 0:00:30]} 17. Rec1 {[%emt 0:00:30]} f5 {[%emt 0:00:30]} 18. exf5 {[%emt 0:00:30]} Rxf5 {[%emt 0:00:30]} 19. Qd2 {[%emt 0:00:30]} Nf4 {[%emt 0:00:30]} 20. Bxf4 {[%emt 0:00:30]} Rxf4 {[%emt 0:00:30]} 21. Nb6 {[%emt 0:00:30]} Rb8 {[%emt 0:00:30]} 22. Re1 {[%emt 0:00:30]} Rh4 {[%emt 0:00:30]} 23. Qe3 {[%emt 0:00:30]} Bd7 {[%emt 0:00:30]} 24. Nd2 {[%emt 0:00:30]} Rf8 {[%emt 0:00:30]} 25. Ne4 {[%emt 0:00:30]} Rhf4 {[%emt 0:00:30]} 26. Nc4 {[%emt 0:00:30]} Bh6 {[%emt 0:00:30]} 27. Ncxd6 {[%emt 0:00:30]} Rxe4 {[%emt 0:00:30]} 28. Qxe4 {[%emt 0:00:30]} Qxd6 {[%emt 0:00:30]} 29. Qxe5 {[%emt 0:00:30]} Bf4 {[%emt 0:00:30]} 30. Qe4 {[%emt 0:00:30]} Bh2+ {[%emt 0:00:30]} 1/2-1/2